bitfinex-derivatives/quotes_SOLF0:USTF0_20241216
["timestamp","ask_amount","ask_price","bid_price","bid_amount"]
[1734336099075,2.2409,223.21,223.19,5.03997611]
[1734336099274,2.2409,223.21,223.18,6.10584755]
[1734336099681,2.2409,223.21,223.19,5.0417826]
[1734336099881,2.2409,223.21,223.18,6.10584755]
[1734336100083,2.2409,223.21,223.19,5.04167978]
[1734336100381,2.2409,223.21,223.2,5.04167978]
[1734336102479,2.2409,223.21,223.2,5.04846218]
[1734336102783,2.2407,223.23,223.2,5.04846218]
[1734336102974,2.2407,223.23,223.18,6.10584755]
[1734336103174,6.10584755,223.26,223.19,5.04865226]
[1734336103373,6.10584755,223.26,223.2,5.04865226]
[1734336103577,6.10584755,223.26,223.18,6.10584755]
[1734336103782,2.2407,223.22,223.19,5.0514001]
[1734336103983,2.2407,223.22,223.2,5.0514001]
[1734336104178,2.2407,223.22,223.18,6.10584755]
[1734336104379,2.2407,223.22,223.19,5.05138567]
[1734336104585,2.2407,223.22,223.2,5.05138567]
[1734336104780,2.2407,223.22,223.21,5.05138567]
[1734336106480,2.0,223.28,223.21,5.05138567]
[1734336106784,2.0,223.28,223.22,5.05138567]
[1734336106980,2.0,223.28,223.2,6.10584755]
[1734336106981,1.98,223.28,223.23,5.05138567]
[1734336107177,2.2405,223.25,223.2,6.10584755]
[1734336107379,2.2405,223.25,223.21,5.05689124]
[1734336107576,2.2405,223.25,223.2,6.10584755]
[1734336107577,2.2405,223.25,223.22,5.05689124]
[1734336107785,2.2405,223.25,223.23,5.05689124]
[1734336107987,1.98,223.28,223.24,5.05689124]
[1734336107988,2.2402,223.27,223.24,5.05689124]
[1734336108181,2.2402,223.27,223.25,5.05689124]
[1734336108384,2.2402,223.27,223.22,6.10584755]
[1734336108581,2.2402,223.27,223.23,5.05809709]
[1734336108783,2.2402,223.27,223.22,6.10584755]
[1734336108985,2.2403,223.26,223.23,5.05916539]
[1734336109286,2.2403,223.26,223.24,5.05916539]
[1734336109485,2.2403,223.26,223.25,5.05916539]
[1734336110384,2.2402,223.28,223.25,5.05916539]
[1734336110584,2.2402,223.28,223.26,5.05916539]
[1734336110787,2.2402,223.28,223.22,6.10584755]
[1734336110984,2.2402,223.28,223.23,5.0607716]
[1734336111184,2.2402,223.27,223.24,5.0607716]
[1734336111384,2.2402,223.27,223.22,6.10584755]
[1734336111385,2.2402,223.27,223.25,5.0607716]
[1734336111584,2.2402,223.27,223.22,6.10584755]
[1734336111786,2.2402,223.27,223.23,5.06145383]
[1734336111985,2.2402,223.27,223.24,5.06145383]
[1734336112187,2.2402,223.27,223.25,5.06145383]
[1734336112386,6.10584755,223.27,223.18,5.32751904]
[1734336112695,1.98,223.29,223.19,5.06237478]
[1734336112696,6.10584755,223.24,223.19,5.06237478]
[1734336112885,1.98,223.25,223.2,5.06237478]
[1734336113087,1.98,223.25,223.21,5.06237478]
[1734336113384,1.98,223.25,223.22,5.06237478]
[1734336113586,4.2205,223.25,223.23,5.06237478]
[1734336113785,4.2205,223.25,223.18,6.10584755]
[1734336114087,4.2205,223.25,223.19,5.06273567]
[1734336114287,4.2205,223.25,223.2,5.06273567]
[1734336114583,1.98,223.25,223.21,5.06273567]
[1734336114788,1.98,223.25,223.22,5.06273567]
[1734336114989,1.98,223.25,223.23,5.06273567]
[1734336115184,1.98,223.25,223.2,6.10584755]
[1734336115492,1.98,223.25,223.21,5.06284881]
[1734336115792,1.98,223.25,223.22,5.06284881]
[1734336115992,1.98,223.25,223.2,6.10584755]
[1734336115993,2.2403,223.26,223.23,5.06284881]
[1734336116191,2.2403,223.26,223.2,6.10584755]
[1734336116391,2.2403,223.26,223.21,5.06268521]
[1734336116585,2.2403,223.26,223.22,5.06268521]
[1734336116786,2.2403,223.26,223.23,5.06268521]
[1734336116984,2.2403,223.26,223.24,5.06268521]
[1734336117290,2.2403,223.26,223.2,6.10584755]
[1734336117485,8.34604755,223.27,223.21,5.0627327]
[1734336117685,4.4774,223.42,223.22,11.16858025]
[1734336117885,6.10584755,223.32,223.24,6.10584755]
[1734336118091,4.2199,223.31,223.25,5.0627327]
[1734336118292,4.2199,223.31,223.26,5.0627327]
[1734336118587,4.2199,223.31,223.27,5.0627327]
[1734336118791,4.2199,223.31,223.28,5.0627327]
[1734336118992,1.98,223.31,223.24,6.10584755]
[1734336119193,2.2399,223.3,223.25,5.06100827]
[1734336119392,2.2399,223.3,223.26,5.06100827]
[1734336119593,2.2399,223.3,223.27,5.06100827]
[1734336119793,2.2399,223.3,223.24,6.10584755]
[1734336119995,2.2399,223.3,223.25,5.06016149]
[1734336120193,2.2399,223.3,223.26,5.06016149]
[1734336120392,2.2399,223.3,223.27,5.06016149]
[1734336120588,2.2399,223.3,223.24,6.10584755]
[1734336120897,2.2399,223.3,223.25,5.05998643]
[1734336121195,2.2399,223.3,223.26,5.05998643]
[1734336121492,2.2399,223.3,223.27,5.05998643]
[1734336121690,1.98,223.31,223.24,6.10584755]
[1734336121887,2.2401,223.29,223.25,5.05991489]
[1734336122091,2.2401,223.29,223.26,5.05991489]
[1734336122389,2.2402,223.27,223.22,8.08584755]
[1734336122693,2.2402,223.27,223.23,5.05911303]
[1734336122895,2.2402,223.27,223.24,5.05911303]
[1734336123193,1.98,223.31,223.25,5.05911303]
[1734336123194,6.10584755,223.28,223.25,5.05911303]
[1734336123396,8.34594755,223.28,223.22,6.10584755]
[1734336123593,8.34594755,223.28,223.23,5.05896398]
[1734336123793,8.34594755,223.28,223.22,6.10584755]
[1734336124093,8.34594755,223.28,223.23,5.05886881]
[1734336124293,8.34594755,223.28,223.24,5.05886881]
[1734336124493,8.34594755,223.28,223.25,5.05886881]
[1734336124792,2.24,223.3,223.26,5.05886881]
[1734336125097,2.24,223.3,223.27,5.05886881]
[1734336125391,2.24,223.3,223.24,6.10584755]
[1734336125595,2.24,223.3,223.25,5.05814087]
[1734336125797,2.24,223.3,223.24,6.10584755]
[1734336125798,2.24,223.3,223.26,5.05814087]
[1734336126090,2.24,223.3,223.27,5.05814087]
[1734336126296,4.2198,223.31,223.26,6.10584755]
[1734336126496,4.2198,223.31,223.27,5.05748947]
[1734336126697,4.2198,223.31,223.26,6.10584755]
[1734336126897,4.2198,223.31,223.27,5.05750391]
[1734336127199,4.2198,223.31,223.26,6.10584755]
[1734336127398,4.2198,223.31,223.27,5.05691454]
[1734336127399,2.2398,223.31,223.27,5.05691454]
[1734336127597,2.2398,223.31,223.26,6.10584755]
[1734336127794,2.2398,223.31,223.27,5.05680515]
[1734336127994,2.2398,223.31,223.26,6.10584755]
[1734336128193,6.10584755,223.32,223.27,5.0568076]
[1734336128400,253.2145592,223.48,223.3,6.10584755]
[1734336128591,6.10584755,223.38,223.32,6.10584755]
[1734336128898,2.2393,223.36,223.3,6.10584755]
[1734336129196,6.10584755,223.36,223.31,5.05560767]
[1734336129397,6.10584755,223.36,223.29,6.10584755]
[1734336129594,8.34514755,223.36,223.3,5.05348396]
[1734336129799,8.34514755,223.36,223.31,5.05348396]
[1734336129996,8.34514755,223.36,223.29,6.10584755]
[1734336130291,2.2393,223.36,223.31,6.10584755]
[1734336130998,1.98,223.37,223.31,8.34554755]
[1734336131193,2.2391,223.38,223.31,8.34554755]
[1734336131795,2.2391,223.38,223.31,2.2397]
[1734336131996,2.2391,223.38,223.31,8.34554755]
[1734336133696,6.10584755,223.39,223.32,2.2396]
[1734336133892,1.98,223.46,223.37,6.10584755]
[1734336134092,4.2184,223.46,223.39,6.10584755]
[1734336134290,10.32424755,223.46,223.39,6.10584755]
[1734336136596,2.2384,223.45,223.39,6.10584755]
[1734336138999,5.48459016,223.47,223.34,2.2395]
[1734336139000,2.2387,223.42,223.34,2.2395]
[1734336139303,6.10584755,223.38,223.32,1.4235]
[1734336139495,6.10584755,223.36,223.29,6.10584755]
[1734336139701,6.10584755,223.36,223.29,8.08584755]
[1734336141496,6.10584755,223.36,223.29,10.32574755]
[1734336141901,6.10584755,223.34,223.29,1.98]
[1734336142905,6.10584755,223.34,223.28,1.5244]
[1734336144300,2.2394,223.35,223.29,6.10584755]
[1734336146202,1.98,223.39,223.31,6.10584755]
[1734336146411,8.08584755,223.39,223.31,6.10584755]
[1734336147508,2.2392,223.37,223.31,6.10584755]
[1734336152405,2.2392,223.37,223.33,6.10584755]
[1734336153309,8.34504755,223.37,223.31,6.10584755]
[1734336154608,6.10584755,223.33,223.26,6.10584755]
[1734336154911,6.10584755,223.33,223.24,6.10584755]
[1734336155107,2.2398,223.31,223.25,5.03449636]
[1734336155410,2.2398,223.31,223.24,10.32634755]
[1734336155612,2.2398,223.31,223.25,5.03492459]
[1734336155911,2.2398,223.31,223.24,10.32634755]
[1734336156109,2.2398,223.31,223.26,6.10584755]
[1734336156505,2.2399,223.3,223.26,6.10584755]
[1734336157311,8.34584755,223.29,223.22,3.666]
[1734336157512,6.10584755,223.29,223.23,5.03543017]
[1734336157711,6.10584755,223.31,223.24,6.10584755]
[1734336157913,6.10584755,223.31,223.26,6.10584755]
[1734336157914,2.2398,223.31,223.26,6.10584755]
[1734336158213,6.10584755,223.33,223.26,6.10584755]
[1734336159009,2.2398,223.31,223.26,6.10584755]
[1734336160912,6.10584755,223.33,223.26,6.10584755]
[1734336161212,2.2397,223.32,223.26,6.10584755]
[1734336163709,6.10584755,223.33,223.26,6.10584755]
[1734336163914,2.2399,223.3,223.26,6.10584755]
[1734336166705,6.10584755,223.31,223.26,6.10584755]
[1734336166906,2.2397,223.32,223.26,6.10584755]
[1734336172823,2.2398,223.31,223.26,6.10584755]
[1734336175925,6.10584755,223.31,223.22,1.4253]
[1734336176125,5.28034722,223.35,223.22,1.4253]
[1734336176328,6.10584755,223.38,223.3,6.10584755]
[1734336176523,2.239,223.39,223.32,6.10584755]
[1734336176728,2.239,223.39,223.34,6.10584755]
[1734336177425,4.2189,223.4,223.34,6.10584755]
[1734336178224,6.10584755,223.39,223.31,1.5572]
[1734336178432,6.10584755,223.39,223.31,7.66304755]
[1734336178634,2.2394,223.36,223.31,7.66304755]
[1734336179232,2.2394,223.36,223.31,1.5572]
[1734336179428,2.2394,223.36,223.32,6.10584755]
[1734336180137,2.2394,223.36,223.31,7.66304755]
[1734336181333,6.10584755,223.39,223.31,1.5572]
[1734336181629,6.10584755,223.35,223.27,6.10584755]
[1734336182230,6.10584755,223.35,223.28,5.04975607]
[1734336182534,6.10584755,223.35,223.27,6.10584755]
[1734336182937,2.2396,223.33,223.27,6.10584755]
[1734336183133,6.10584755,223.33,223.23,3.0569]
[1734336183334,6.10584755,223.31,223.24,7.03244804]
[1734336183533,2.2399,223.3,223.25,5.05244804]
[1734336183734,2.2399,223.3,223.26,5.05244804]
[1734336183932,2.2399,223.3,223.24,8.08584755]
[1734336184234,2.2399,223.3,223.25,5.05255938]
[1734336184434,2.2399,223.3,223.26,5.05255938]
[1734336184735,2.2399,223.3,223.24,8.08584755]
[1734336184930,2.2399,223.3,223.25,5.05390908]
[1734336185138,2.2399,223.3,223.26,5.05390908]
[1734336185332,2.2399,223.3,223.24,8.08584755]
[1734336185532,2.2399,223.3,223.25,5.05390805]
[1734336185734,2.2399,223.3,223.26,5.05390805]
[1734336185937,2.2399,223.3,223.24,8.08584755]
[1734336186137,2.2399,223.3,223.25,5.05390805]
[1734336186336,2.2399,223.3,223.26,5.05390805]
[1734336186535,2.24,223.29,223.24,1.98]
[1734336186736,2.24,223.29,223.25,5.0539064]
[1734336186936,2.24,223.29,223.24,6.10584755]
[1734336187536,2.24,223.29,223.25,5.05392723]
[1734336187735,2.24,223.29,223.24,6.10584755]
[1734336187938,2.24,223.29,223.25,5.05365643]
[1734336188140,2.24,223.29,223.24,6.10584755]
[1734336188340,2.24,223.29,223.25,5.05365643]
[1734336188533,2.24,223.29,223.24,6.10584755]
[1734336188837,2.24,223.29,223.25,5.05335113]
[1734336189039,2.24,223.29,223.24,6.10584755]
[1734336189335,2.24,223.29,223.25,5.05335113]
[1734336189530,2.24,223.29,223.24,6.10584755]
[1734336189531,6.10584755,223.31,223.24,6.10584755]
[1734336189736,2.2399,223.3,223.25,5.05324414]
[1734336189936,2.2399,223.3,223.24,6.10584755]
[1734336190137,2.2399,223.3,223.25,5.05315322]
[1734336190333,2.2401,223.28,223.23,3.0569]
[1734336190538,6.10584755,223.29,223.22,5.42938494]
[1734336190743,6.10584755,223.29,223.19,1.98]
[1734336190935,6.10584755,223.29,223.21,6.10584755]
[1734336191137,2.2402,223.27,223.22,5.05362235]
[1734336191336,2.2402,223.27,223.21,6.10584755]
[1734336191533,2.2402,223.27,223.22,5.05303749]
[1734336191738,2.2402,223.27,223.21,6.10584755]
[1734336191934,2.2402,223.27,223.22,5.05298242]
[1734336192138,2.2402,223.27,223.21,6.10584755]
[1734336192333,1.98,223.32,223.23,6.10584755]
[1734336192541,8.08584755,223.32,223.23,6.10584755]
[1734336193037,2.2399,223.3,223.23,6.10584755]
[1734336193637,2.2401,223.29,223.23,6.10584755]
[1734336193941,6.10584755,223.28,223.19,7.37322689]
[1734336194139,2.2403,223.26,223.21,6.10584755]
[1734336194338,2.2403,223.26,223.22,5.05265955]
[1734336194541,2.2403,223.26,223.21,6.10584755]
[1734336195041,2.2406,223.23,223.15,6.663]
[1734336195233,2.2406,223.23,223.22,5.0527864]
[1734336195639,2.2406,223.23,223.17,6.10584755]
[1734336195841,2.2406,223.23,223.18,5.05204776]
[1734336196041,2.2406,223.23,223.17,6.10584755]
[1734336198939,8.08584755,223.24,223.02,15.14558061]
[1734336199149,8.08584755,223.24,223.14,6.10584755]
[1734336199150,1.98,223.24,223.14,6.10584755]
[1734336199347,1.98,223.24,223.15,5.04856546]
[1734336199348,6.10584755,223.21,223.15,5.04856546]
[1734336199541,6.10584755,223.21,223.14,6.10584755]
[1734336199747,6.10584755,223.21,223.15,5.0474404]
[1734336199947,6.10584755,223.21,223.14,6.10584755]
[1734336200149,6.10584755,223.21,223.15,5.04747412]
[1734336200344,8.34664755,223.21,223.14,6.10584755]
[1734336200546,8.34664755,223.21,223.15,5.04728786]
[1734336200851,2.2409,223.2,223.14,6.10584755]
[1734336201055,8.08584755,223.19,223.07,2.9275]
[1734336201245,6.10584755,223.17,223.1,6.10584755]
[1734336201443,6.10584755,223.17,223.11,5.04620913]
[1734336201444,2.2415,223.14,223.11,5.04620913]
[1734336201645,1.98,223.16,223.1,6.10584755]
[1734336202044,6.10584755,223.22,223.14,6.10584755]
[1734336202248,1.98,223.21,223.14,6.10584755]
[1734336202641,5.34976043,223.26,223.16,6.10584755]
[1734336202849,6.10584755,223.25,223.18,6.10584755]
[1734336203153,1.98,223.24,223.18,6.10584755]
[1734336203553,4.2206,223.24,223.18,6.10584755]
[1734336207252,2.2405,223.23,223.18,6.10584755]
[1734336207446,6.10584755,223.21,223.14,1.458]
[1734336207754,6.10584755,223.21,222.9,88.20947184]
[1734336207755,6.10584755,223.17,223.1,7.56784755]
[1734336208054,2.2411,223.16,223.11,5.0383902]
[1734336208248,8.08584755,223.17,223.1,7.56784755]
[1734336208448,1.98,223.17,223.12,6.10584755]
[1734336209551,4.2211,223.17,223.12,6.10584755]
[1734336210148,2.2412,223.16,223.1,7.56784755]
[1734336210351,8.08584755,223.17,223.1,7.56784755]
[1734336210652,4.3517,223.25,223.12,6.10584755]
[1734336210848,6.10584755,223.19,223.12,6.10584755]
[1734336211051,1.98,223.18,223.12,6.10584755]
[1734336212354,1.98,223.18,223.13,2.2414]
[1734336212555,6.10584755,223.2,223.1,1.462]
[1734336212758,1.98,223.19,223.14,6.10584755]
[1734336213557,1.98,223.19,223.13,2.2414]
[1734336213558,4.2205,223.23,223.18,6.10584755]
[1734336214156,6.10584755,223.25,223.18,6.10584755]
[1734336214157,4.2203,223.24,223.18,6.10584755]
[1734336214359,52.8021,223.32,223.2,6.10584755]
[1734336214565,52.8021,223.32,223.16,1.98]
[1734336214566,6.10584755,223.29,223.22,6.10584755]
[1734336214761,52.8021,223.32,223.22,6.10584755]
[1734336214968,6.10584755,223.29,223.22,6.10584755]
[1734336215661,7.23306833,223.31,223.2,6.10584755]
[1734336216068,6.10584755,223.26,223.2,6.10584755]
[1734336216269,8.08584755,223.26,223.2,6.10584755]
[1734336217066,2.2396,223.32,223.25,6.10584755]
[1734336217268,1.98,223.35,223.29,6.10584755]
[1734336218071,2.2393,223.35,223.29,6.10584755]
[1734336218268,1.98,223.34,223.29,6.10584755]
[1734336218479,2.2391,223.36,223.31,6.10584755]
[1734336218775,1.4208,223.39,223.25,1.98]
[1734336218776,1.98,223.39,223.33,6.10584755]
[1734336219974,1.98,223.39,223.3,9.53453267]
[1734336220478,1.98,223.39,223.32,2.2395]
[1734336220675,1.4208,223.47,223.33,9.53453267]
[1734336220876,1.4208,223.47,223.36,2.2391]
[1734336220877,1.98,223.42,223.36,2.2391]
[1734336221375,1.98,223.42,223.33,11.51453267]
[1734336221376,1.98,223.42,223.35,2.2392]
[1734336221575,1.98,223.42,223.33,11.51453267]
[1734336221972,10.95533267,223.47,223.34,2.2393]
[1734336222178,1.98,223.44,223.33,11.51453267]
[1734336222378,2.2385,223.42,223.33,11.51453267]
[1734336223475,2.2385,223.42,223.33,13.75393267]
[1734336223772,2.2385,223.42,223.33,11.77393267]
[1734336223975,2.2386,223.41,223.33,11.51453267]
[1734336225177,2.2387,223.4,223.33,11.51453267]
[1734336225578,1.98,223.44,223.33,11.51453267]
[1734336225777,2.2387,223.4,223.33,11.51453267]
[1734336225979,4.2187,223.4,223.33,9.53453267]
[1734336227088,2.2386,223.42,223.33,9.53453267]
[1734336228294,2.2387,223.4,223.31,2.2395]
[1734336228595,1.98,223.39,223.3,16.98156672]
[1734336228991,1.98,223.39,223.3,15.00156672]
[1734336229497,4.2189,223.39,223.3,17.24126672]
[1734336230300,2.2389,223.38,223.3,19.22126672]
[1734336231393,2.2389,223.38,223.31,2.2396]
[1734336234301,4.2189,223.39,223.32,2.2395]
[1734336234495,1.98,223.39,223.3,15.00156672]
[1734336234697,1.98,223.39,223.27,11.05543267]
[1734336234897,1.98,223.39,223.29,2.2398]
[1734336236496,2.2391,223.36,223.29,2.2398]
[1734336237600,2.2391,223.36,223.28,2.2399]
[1734336237801,9.53453267,223.4,223.27,11.05543267]
[1734336238006,2.2394,223.33,223.27,1.5209]
[1734336238304,1.98,223.33,223.27,1.5209]
[1734336238805,2.2395,223.32,223.26,1.5133]
[1734336239305,1.98,223.33,223.26,1.5133]
[1734336239804,1.98,223.33,223.24,11.77483267]
[1734336239805,2.2396,223.31,223.24,9.53453267]
[1734336240002,6.10687306,223.32,223.25,6.10687306]
[1734336240401,2.2397,223.31,223.23,2.2404]
[1734336240707,6.10687306,223.32,223.24,6.10687306]
[1734336241497,2.2397,223.3,223.24,6.10687306]
[1734336241697,1.98,223.29,223.24,6.10687306]
[1734336242803,6.10687306,223.28,223.21,1.5302]
[1734336243208,6.10687306,223.28,223.22,6.10687306]
[1734336243900,1.98,223.29,223.16,5.32196605]
[1734336244103,6.10687306,223.25,223.16,11.42883911]
[1734336244299,5.29990776,223.33,223.16,11.42883911]
[1734336244300,6.10687306,223.23,223.16,11.42883911]
[1734336244507,1.98,223.22,223.16,6.10687306]
[1734336244705,1.98,223.22,223.06,2.9125]
[1734336245004,1.98,223.22,223.15,6.10687306]
[1734336245807,2.2409,223.18,223.1,2.2416]
[1734336246012,2.16,223.17,223.06,2.9125]
[1734336246300,9.55390432,223.22,223.06,12.46640432]
[1734336246301,2.16,223.16,223.06,12.46640432]
[1734336246601,2.16,223.15,223.06,12.46640432]
[1734336246809,2.16,223.14,223.07,2.2419]
[1734336248100,4.4013,223.14,223.07,2.2419]
[1734336249006,2.2414,223.13,223.07,2.2419]
[1734336249209,2.16,223.14,223.06,12.46640432]
[1734336250308,2.16,223.14,223.06,9.55390432]
[1734336250607,2.16,223.14,223.03,9.55390432]
[1734336251109,2.2417,223.1,223.03,11.79630432]
[1734336251298,2.16,223.09,223.03,11.79630432]
[1734336253310,4.4018,223.09,223.03,2.2424]
[1734336254510,2.2418,223.09,223.03,2.2424]
[1734336254715,2.16,223.08,223.03,2.2424]
[1734336255207,2.16,223.1,223.06,2.2421]
[1734336256210,2.16,223.1,223.04,2.2422]
[1734336256416,2.16,223.1,223.03,9.55390432]
[1734336256913,2.2418,223.09,223.03,9.55390432]
[1734336257109,2.2418,223.09,223.02,2.2425]
[1734336258108,2.2418,223.09,223.03,2.2424]
[1734336260614,2.2419,223.08,223.03,2.2424]
[1734336262016,2.16,223.1,223.0,16.36610679]
[1734336262316,2.242,223.07,223.02,2.2425]
[1734336262814,11.71390432,223.1,223.0,1.5298]
[1734336263011,2.242,223.07,222.98,3.675]
[1734336263210,11.71390432,223.1,222.98,3.675]
[1734336263614,2.242,223.07,222.98,3.675]
[1734336263817,11.71390432,223.1,222.98,3.675]
[1734336264619,11.71390432,223.1,222.88,4.4877]
[1734336264620,9.55390432,223.0,222.86,2.244]
[1734336264912,9.55390432,223.0,222.67,74.75947184]
[1734336264913,2.2434,222.93,222.82,6.95451973]
[1734336265113,9.55390432,222.89,222.82,6.95451973]
[1734336265316,9.55390432,222.86,222.82,6.95451973]
[1734336265514,2.16,222.85,222.82,1.4726]
[1734336265715,9.55390432,222.86,222.82,1.4726]
[1734336265917,2.16,222.85,222.82,1.4726]
[1734336266112,2.16,222.85,222.8,1.559]
[1734336266418,2.16,222.85,222.75,1.4126]
[1734336267013,4.4042,222.85,222.77,2.245]
[1734336267218,4.4042,222.85,222.76,5.41242436]
[1734336267513,1.4335,222.96,222.76,5.41242436]
[1734336267514,2.16,222.89,222.8,9.55390432]
[1734336267911,2.16,222.89,222.76,5.41242436]
[1734336267912,2.16,222.89,222.81,9.55390432]
[1734336268718,2.16,222.89,222.84,2.2442]
[1734336269521,2.16,222.89,222.81,9.55390432]
[1734336269726,2.2439,222.88,222.8,2.2446]
[1734336269923,2.16,222.87,222.8,2.2446]
[1734336270219,4.404,222.87,222.8,2.2446]
[1734336270623,2.244,222.87,222.8,2.2446]
[1734336270923,2.16,222.86,222.8,2.2446]
[1734336271225,2.16,222.85,222.8,2.2446]
[1734336271420,2.244,222.87,222.8,2.2446]
[1734336271613,2.16,222.86,222.8,2.2446]
[1734336272517,2.16,222.86,222.79,2.2447]
[1734336272920,2.16,222.86,222.75,10.96650432]
[1734336273219,2.2447,222.8,222.75,10.96650432]
[1734336273418,4.4047,222.8,222.75,10.96650432]
[1734336274018,2.16,222.8,222.75,10.96650432]
[1734336274223,2.16,222.8,222.76,2.245]
[1734336275014,2.16,222.8,222.75,10.96650432]
[1734336275219,2.16,222.8,222.75,1.4126]
[1734336275925,2.2448,222.79,222.75,1.4126]
[1734336276226,2.16,222.8,222.75,1.4126]
[1734336277221,2.2448,222.79,222.75,1.4126]
[1734336277422,2.16,222.8,222.74,1.4899]
[1734336277618,2.16,222.8,222.7,0.33391]
[1734336278026,2.245,222.77,222.7,0.33391]
[1734336278219,2.16,222.8,222.7,0.33391]
[1734336278624,2.2451,222.77,222.7,2.57961]
[1734336279221,2.16,222.8,222.7,0.33391]
[1734336279424,2.2452,222.75,222.7,0.33391]
[1734336279623,2.16,222.74,222.7,0.33391]
[1734336280122,2.16,222.83,222.72,9.55390432]
[1734336280326,2.16,222.82,222.77,9.55390432]
[1734336282326,2.16,222.82,222.74,9.55390432]
[1734336282627,2.16,222.82,222.77,2.245]
[1734336282825,2.16,222.83,222.77,9.55390432]
[1734336284030,2.16,222.84,222.77,9.55390432]
[1734336284431,2.16,222.84,222.79,2.2448]
[1734336286231,2.16,222.84,222.77,2.2449]
[1734336286428,2.16,222.84,222.74,11.71390432]
[1734336286627,2.16,222.84,222.75,4.97277218]
[1734336286829,2.16,222.84,222.76,4.97277218]
[1734336287024,2.16,222.84,222.77,4.97277218]
[1734336287325,2.16,222.84,222.71,9.55390432]
[1734336287529,2.2447,222.81,222.74,2.2453]
[1734336287830,2.2447,222.81,222.75,4.97999324]
[1734336288128,2.16,222.84,222.76,4.97999324]
[1734336288327,2.16,222.84,222.77,4.97999324]
[1734336288532,2.16,222.84,222.74,2.2453]
[1734336288735,2.16,222.84,222.75,4.98303377]
[1734336288924,2.16,222.84,222.76,4.98303377]
[1734336289129,2.2447,222.81,222.77,4.98303377]
[1734336289325,2.16,222.84,222.73,2.2454]
[1734336289523,2.16,222.84,222.74,4.98530206]
[1734336289729,2.2447,222.81,222.75,4.98530206]
[1734336290029,2.2447,222.81,222.76,4.98530206]
[1734336290224,2.2447,222.81,222.71,9.55390432]
[1734336290225,2.2447,222.81,222.77,4.98530206]
[1734336290534,2.16,222.84,222.7,1.434]
[1734336290535,2.16,222.8,222.7,1.434]
[1734336290724,2.16,222.79,222.7,1.434]
[1734336291030,2.2452,222.75,222.71,4.98543891]
[1734336291238,2.16,222.74,222.72,4.98543891]
[1734336291532,2.16,222.73,222.68,2.954]
[1734336291835,2.16,222.73,222.69,4.98837054]
[1734336292022,2.16,222.73,222.7,4.98837054]
[1734336292227,2.16,222.73,222.71,4.98837054]
[1734336292427,2.16,222.73,222.72,4.98837054]
[1734336292834,2.16,222.74,222.72,4.98837054]
[1734336293133,2.16,222.74,222.73,4.98837054]
[1734336293736,2.16,222.74,222.73,4.99028106]
[1734336294136,2.16,222.74,222.68,3.32423]
[1734336294335,2.16,222.74,222.73,4.99028124]
[1734336294833,2.16,222.74,222.7,2.2457]
[1734336295034,2.16,222.74,222.71,4.99156939]
[1734336295228,2.16,222.74,222.72,4.99156939]
[1734336295432,2.16,222.74,222.68,3.32423]
[1734336295629,2.16,222.74,222.69,4.99264598]
[1734336295834,2.16,222.74,222.7,4.99264598]
[1734336296029,2.16,222.74,222.71,4.99264598]
[1734336296228,2.16,222.74,222.72,4.99264598]
[1734336296430,2.16,222.74,222.68,5.57013]
[1734336296431,2.2454,222.73,222.68,5.57013]
[1734336296635,2.2454,222.73,222.69,4.9939679]
[1734336296833,2.2454,222.73,222.7,4.9939679]
[1734336297032,2.2454,222.73,222.68,5.57013]
[1734336297230,2.16,222.74,222.71,4.99397123]
[1734336297429,2.16,222.74,222.72,4.99397123]
[1734336297634,2.16,222.74,222.68,3.32423]
[1734336297829,2.16,222.74,222.69,4.99561764]
[1734336298035,2.2457,222.7,222.68,0.37023]
[1734336298239,2.16,222.69,222.68,0.37023]
[1734336299344,4.4058,222.69,222.68,0.37023]
[1734336300831,2.16,222.69,222.68,0.37023]
[1734336302233,4.4058,222.69,222.68,0.37023]
[1734336303236,2.2457,222.71,222.68,0.37023]